Workbook

Sheet Area 1&2
A1: Item | B1: Description | C1: UNIT | D1: QTY | E1: Rate | F1: No. of guards | G1: Total
A2: 1 | B2: AREA: JOHANNESBURG CLN
A3: 1.1 | B3: Minerva
A4: 1.1.1 | B4: Grade B NKP Security Officer Dayshift including Armed | C4: month | D4: 36 | F4: 1
A5: 1.1.2 | B5: Grade B NKP Security Officer Night shift including Armed | C5: month | D5: 36 | F5: 1
A6: 1.1.3 | B6: Grade C NKP Security Officer Dayshift Armed | C6: month | D6: 36 | F6: 2
A7: 1.1.4 | B7: Grade C NKP Security Officer Nightshift Armed | C7: month | D7: 36 | F7: 3
B8: Subtotal
A9: 1.2 | B9: Croydon substation
A10: 1.2.1 | B10: Grade C Security Officer Dayshift | C10: month | D10: 36 | F10: 2
A11: 1.2.2 | B11: Grade C Security Officer Night shift | C11: month | D11: 36 | F11: 2
B12: Subtotal
A13: 1.3 | B13: Sisimuka Substation
A14: 1.3.1 | B14: Grade C Security Officer Dayshift | C14: month | D14: 36 | F14: 2
A15: 1.3.2 | B15: Grade C Security Officer Night shift | C15: month | D15: 36 | F15: 2
B16: Subtotal
A17: 1.4 | B17: Jupiter substaion
A18: 1.4.1 | B18: Grade C Security Officer Dayshift | C18: month | D18: 36 | F18: 2
A19: 1.4.2 | B19: Grade C Security Officer Night shift | C19: month | D19: 36 | F19: 2
B20: Subtotal
A21: 1.5 | B21: Eiger substation
A22: 1.5.1 | B22: Grade C Security Officer Dayshift | C22: month | D22: 36 | F22: 2
A23: 1.5.2 | B23: Grade C Security Officer Night shift | C23: month | D23: 36 | F23: 4
B24: Subtotal
A25: 1.6 | B25: Lulamisa
A26: 1.6.1 | B26: Grade C Security Officer Dayshift | C26: month | D26: 36 | F26: 2
A27: 1.6.2 | B27: Grade C Security Officer Night shift | C27: month | D27: 36 | F27: 2
B28: Subtotal
A29: 1.7 | B29: Lepini substation
A30: 1.7.1 | B30: Grade C Security Officer Dayshift | C30: month | D30: 36 | F30: 2
A31: 1.7.2 | B31: Grade C Security Officer Night shift | C31: month | D31: 36 | F31: 3
A32: 1.7.2 | B32: Subtotal
A33: 1.8 | B33: Others
A34: 1.8.1 | B34: 4x4 Vehicle for postings and patrols during day shifts, night shift and weekend including holidays(km) | C34: km | D34: =3000*36 -> 108000 | F34: 1
A35: 1.8.2 | B35: 4x2 Vehicle for postings and patrols during day shifts, night shift and weekend including holidays(km) | C35: km | D35: =3000*36 -> 108000 | F35: 1
A36: 1.8.3 | B36: Armed reaction team of 2 personnel (provide rate per person) | C36: month | D36: 36 | F36: 8
A37: 1.8.4 | B37: Armed Supervisor grade B. Dayshift including 4x2 vehicle (all - inclusive costs) | C37: month | D37: 36 | F37: 1
A38: 1.8.5 | B38: Armed Supervisor grade B. Nightshift including 4x2 vehicle (all - inclusive costs) | C38: month | D38: 36 | F38: 1
A39: 1.8.6 | B39: SHE officer | C39: month | D39: 36 | F39: 1
B40: Subtotal
B41: Total
A43: 2 | B43: AREA: TSHWANE
A44: 2.1 | B44: Pelly substation
A45: 2.1.1 | B45: Grade C Security Officer Dayshift | C45: month | D45: 36 | F45: 2
A46: 2.1.2 | B46: Grade C Security Officer Night shift | C46: month | D46: 36 | F46: 2
B47: Subtotal
A48: 2.2 | B48: Kwagga substation
A49: 2.2.1 | B49: Grade C Security Officer Dayshift | C49: month | D49: 36 | F49: 2
A50: 2.2.2 | B50: Grade C Security Officer Night shift | C50: month | D50: 36 | F50: 2
B51: Subtotal
A52: 2.3 | B52: Njala substation
A53: 2.3.1 | B53: Grade C Security Officer Dayshift | C53: month | D53: 36 | F53: 2
A54: 2.3.2 | B54: Grade C Security Officer Night shift | C54: month | D54: 36 | F54: 2
B55: Subtotal
A56: 2.4 | B56: Thuso substation
A57: 2.4.1 | B57: Grade C Security Officer Dayshift | C57: month | D57: 36 | F57: 2
A58: 2.4.2 | B58: Grade C Security Officer Night shift | C58: month | D58: 36 | F58: 2
B59: Subtotal
A60: 2.5 | B60: Others
B61: 4x4 Vehicle for postings and patrols during day shifts, night shift and weekend including holidays(km) | C61: km | D61: =3000*36 -> 108000 | F61: 1
B62: 4x2 Vehicle for postings and patrols during day shifts, night shift and weekend including holidays(km) | C62: km | D62: =3000*36 -> 108000 | F62: 1
B63: Armed reaction team of 2 personnel (provide rate per person) | C63: month | D63: 36 | F63: 8
B64: Subtotal
B65: Total
A66: 3 | B66: AREA: EASTRAND
A67: 3.1 | B67: Esselen substation
A68: 3.1.1 | B68: Grade C Security Officer Dayshift | C68: month | D68: 36 | F68: 2
A69: 3.1.2 | B69: Grade C Security Officer Night shift | C69: month | D69: 36 | F69: 4
B70: Subtotal
A71: 3.2 | B71: Benburg substation
A72: 3.2.1 | B72: Grade C Security Officer Dayshift | C72: month | D72: 36 | F72: 2
A73: 3.2.2 | B73: Grade C Security Officer Night shift | C73: month | D73: 36 | F73: 2
B74: Subtotal
A75: 3.3 | B75: Nevis substation
A76: 3.3.1 | B76: Grade C Security Officer Dayshift | C76: month | D76: 36 | F76: 2
A77: 3.3.2 | B77: Grade C Security Officer Night shift | C77: month | D77: 36 | F77: 2
B78: Subtotal
A79: 3.4 | B79: Pieterboth substation
A80: 3.4.1 | B80: Grade C Security Officer Dayshift | C80: month | D80: 36 | F80: 2
A81: 3.4.2 | B81: Grade C Security Officer Night shift | C81: month | D81: 36 | F81: 4
B82: Subtotal
A83: 3.5 | B83: Brenner substation
A84: 3.5.1 | B84: Grade C Security Officer Dayshift | C84: month | D84: 36 | F84: 2
A85: 3.5.2 | B85: Grade C Security Officer Night shift | C85: month | D85: 36 | F85: 2
B86: Subtotal
A87: 3.6 | B87: Others
B88: 4x4 Vehicle for postings and patrols during day shifts, night shift and weekend including holidays(km) | C88: km | D88: =3000*36 -> 108000 | F88: 1
B89: 4x2 Vehicle for postings and patrols during day shifts, night shift and weekend including holidays(km) | C89: km | D89: =3000*36 -> 108000 | F89: 2
B90: Armed reaction team of 2 personnel (provide rate per person) | C90: month | D90: 36 | F90: 12
B91: Subtotal
B92: Total
A93: 4 | B93: AREA: VAAL
A94: 4.1 | B94: Rigi substation
A95: 4.1.1 | B95: Grade C Security Officer Dayshift | C95: month | D95: 36 | F95: 2
A96: 4.1.2 | B96: Grade C Security Officer Night shift | C96: month | D96: 36 | F96: 2
B97: Subtotal
A98: 4.2 | B98: Verdun substation
A99: 4.2.1 | B99: Grade C Security Officer Dayshift | C99: month | D99: 36 | F99: 2
A100: 4.2.2 | B100: Grade C Security Officer Night shift | C100: month | D100: 36 | F100: 2
B101: Subtotal
A102: 4.3 | B102: Glockner substation
B103: Grade C Security Officer Dayshift | C103: month | D103: 36 | F103: 2
B104: Grade C Security Officer Night shift | C104: month | D104: 36 | F104: 2
A105: 4.3.1 | B105: Grade C Security Officer Dayshift for depo | C105: month | D105: 36 | F105: 1
A106: 4.3.2 | B106: Grade C Security Officer Night shift for depo | C106: month | D106: 36 | F106: 2
B107: Subtotal
A108: 4.4 | B108: Kookfontein substation
A109: 4.4.1 | B109: Grade C Security Officer Dayshift | C109: month | D109: 36 | F109: 2
A110: 4.4.2 | B110: Grade C Security Officer Night shift | C110: month | D110: 36 | F110: 2
B111: Subtotal
A112: 4.5 | B112: Snowdon substation
A113: 4.5.1 | B113: Grade C Security Officer Dayshift | C113: month | D113: 36 | F113: 2
A114: 4.5.2 | B114: Grade C Security Officer Night shift | C114: month | D114: 36 | F114: 4
B115: Subtotal
A116: 4.6 | B116: Others
B117: 4x4 Vehicle for postings and patrols during day shifts, night shift and weekend including holidays(km) | C117: km | D117: =3000*36 -> 108000 | F117: 1
B118: 4x2 Vehicle for postings and patrols during day shifts, night shift and weekend including holidays(km) | C118: km | D118: =3000*36 -> 108000 | F118: 2
B119: Armed reaction team of 2 personnel (provide rate per person) | C119: month | D119: 36 | F119: 12
B120: Armed Supervisor grade B. Dayshift including 4x2 vehicle (all - inclusive costs) | C120: month | D120: 36 | F120: 1
B121: Armed Supervisor grade B. Nightshift including 4x2 vehicle (all - inclusive costs) | C121: month | D121: 36 | F121: 1
B122: SHE officer | C122: month | D122: 36 | F122: 1
B123: Subtotal
B124: Total
B125: AREA: WESTRAND/JHB
A126: 5.1 | B126: Etna
A127: 5.1.1 | B127: Grade C Security Officer Dayshift | C127: month | D127: 36 | F127: 2
A128: 5.1.2 | B128: Grade C Security Officer Night shift | C128: month | D128: 36 | F128: 2
B129: Subtotal
A130: 5.2 | B130: Bernina- Hera
A131: 5.2.1 | B131: Grade C Security Officer Dayshift | C131: month | D131: 36 | F131: 2
A132: 5.2.2 | B132: Grade C Security Officer Night shift | C132: month | D132: 36 | F132: 2
B133: Subtotal
A134: 5.3 | B134: Taunus
A135: 5.3.1 | B135: Grade C Security Officer Dayshift | C135: month | D135: 36 | F135: 2
A136: 5.3.2 | B136: Grade C Security Officer Night shift | C136: month | D136: 36 | F136: 2
B137: Subtotal
A138: 5.4 | B138: Westgate
A139: 5.4.1 | B139: Grade C Security Officer Dayshift | C139: month | D139: 36 | F139: 2
A140: 5.4.2 | B140: Grade C Security Officer Night shift | C140: month | D140: 36 | F140: 2
B141: Subtotal
A142: 5.5 | B142: Princess
A143: 5.5.1 | B143: Grade C Security Officer Dayshift | C143: month | D143: 36 | F143: 2
A144: 5.5.2 | B144: Grade C Security Officer Night shift | C144: month | D144: 36 | F144: 2
B145: Subtotal
A146: 5.6 | B146: Craighall
A147: 5.6.1 | B147: Grade C Security Officer Dayshift | C147: month | D147: 36 | F147: 2
A148: 5.6.2 | B148: Grade C Security Officer Night shift | C148: month | D148: 36 | F148: 2
B149: Subtotal
A150: 5.8 | B150: Others
B151: 4x4 Vehicle for postings and patrols during day shifts, night shift and weekend including holidays(km) | C151: km | D151: =3000*36 -> 108000 | F151: 1
B152: 4x2 Vehicle for postings and patrols during day shifts, night shift and weekend including holidays(km) | C152: km | D152: =3000*36 -> 108000 | F152: 2
B153: Armed reaction team of 2 personnel (provide rate per person) | C153: month | D153: 36 | F153: 12
B154: Subtotal
B155: Total
B156: ADDITIONAL OTHER CLN
B157: Polygraph test for eskom staff and other contractors | C157: no | D157: =18*3 -> 54 | F157: 1
B158: Total
B160: Total
B161: VAT
B162: GRAND TOTAL

Sheet Summary
B5: ITEM | C5: DESCRIPTION | D5: Total
C6: Provision of security guards services for the duration of 36 months as per the specification.
B8: 1 | C8: AREA: JOHANNESBURG CLN
B10: 2 | C10: AREA: TSHWANE
B12: 3 | C12: AREA: EASTRAND
B14: 4 | C14: AREA: VAAL
B16: 5 | C16: AREA: WESTRAND/JHB
B18: 6 | C18: ADDITIONAL OTHER CLN
C20: TOTAL
C21: VAT AT 15%
C22: GRAND TOTAL

Sheet JHB-TSHWN (hidden)
A1: ITEM | B1: PAYREF | C1: DESCRIPTION | D1: UNIT | E1: A-QTY | F1: RATE | H1: AMOUNT | I1: WORDING
C3: JOHANNESBURG CLN – (TSHWANE AREAS) | D3: H1
C4: Pelly substation | D4: H3
C5: 2x Grade C Security Officer Dayshift | D5: Month | E5: 36 | F5: =19917.96*2 -> R39,835.92 | H5: =F5*E5 -> R1,434,093.12
C6: 4x Grade C Security Officer Night shift | D6: Month | E6: 36 | F6: =19917.96*4 -> R79,671.84 | H6: =F6*E6 -> R2,868,186.24
C7: Subtotal | H7: =H5+H6 -> R4,302,279.36
C8: Kwagga substation
C9: 2x Grade C Security Officer Dayshift | D9: Month | E9: 36 | F9: =19917.96*2 -> R39,835.92 | H9: =F9*E9 -> R1,434,093.12
C10: 2x Grade C Security Officer Night shift | D10: Month | E10: 36 | F10: =19917.96*2 -> R39,835.92 | H10: =F10*E10 -> R1,434,093.12
C11: Subtotal | H11: =H9+H10 -> R2,868,186.24
C12: Njala substation
C13: 2x Grade C Security Officer Dayshift | D13: Month | E13: 36 | F13: =19917.96*2 -> R39,835.92 | H13: =E13*F13 -> R1,434,093.12
C14: 2x Grade C Security Officer Night shift | D14: Month | E14: 36 | F14: =19917.96*2 -> R39,835.92 | H14: =E14*F14 -> R1,434,093.12
C15: Subtotal | H15: =H13+H14 -> R2,868,186.24
C16: Thuso substation
C17: 2x Grade C Security Officer Dayshift | D17: Month | E17: 36 | F17: =19917.96*2 -> R39,835.92 | H17: =F17*E17 -> R1,434,093.12
C18: 4x Grade C Security Officer Night shift | D18: Month | E18: 36 | F18: =19917.96*4 -> R79,671.84 | H18: =F18*E18 -> R2,868,186.24
C19: Subtotal | H19: =H17+H18 -> R4,302,279.36
C20: Others
C21: 4x2 Vehicle for patrols (during day shifts, night shift and weekend including holidays) /km (2vehicle x cln for each shift) | D21: KM | E21: 8000 | F21: R6.00 | H21: =E21*F21 -> R48,000.00
C22: 4x4 vehicle ( 1vehicle x cln for each shift) | D22: KM | E22: 4000 | F22: R6.00 | H22: =E22*F22 -> R24,000.00
C23: 12 x Armed reaction team of 2 personnel Day + Nightshift (provide rate Grade C armed per officer) | D23: Month | E23: 36 | F23: =19917.96*12 -> R239,015.52 | H23: =E23*F23 -> R8,604,558.72
C24: Supervisor grade B. Dayshift (all-inclusive costs) 4 x 2 vehicle | D24: Month | E24: 36 | F24: R22,089.32 | H24: R795,215.52
C25: Supervisor grade B. Nightshift (all-inclusive costs)4 x 2 vehicle | D25: Month | E25: 36 | F25: R22,089.32 | H25: R795,215.52
C26: SHE officer | D26: Month | E26: 36 | F26: R8,000.00 | H26: =E26*F26 -> R288,000.00
C27: Subtotal | H27: =SUM(H21:H26) -> R10,554,989.76
C28: TOTAL FOR JOHANNESBURG CLN – (TSHWANE AREAS) | H28: =H27+H19+H15+H11+H7 -> R24,895,920.96

Sheet EAST RAND (hidden)
A1: ITEM | B1: PAYREF | C1: DESCRIPTION | D1: UNIT | E1: A-QTY | F1: RATE | H1: AMOUNT | I1: WORDING
C3: AREA: EASTRAND
C4: Esselen substation
C5: 2x Grade C Security Officer Dayshift | D5: Month | E5: 36 | F5: =19917.96*2 -> R39,835.92 | H5: =F5*E5 -> R1,434,093.12
C6: 4x Grade C Security Officer Night shift | D6: Month | E6: 36 | F6: =19917.96*4 -> R79,671.84 | H6: =F6*E6 -> R2,868,186.24
C7: Subtotal | H7: =H5+H6 -> R4,302,279.36
C8: Benburg substation
C9: 2x Grade C Security Officer Dayshift | D9: Month | E9: 36 | F9: =19917.96*2 -> R39,835.92
C10: 4x Grade C Security Officer Night shift | D10: Month | E10: 36 | F10: =19917.96*4 -> R79,671.84 | H10: =F10*E10 -> R2,868,186.24
C11: Subtotal | H11: =F11*E11 -> R0.00
C12: Nevis substation | H12: =H10+H11 -> R2,868,186.24
C13: 2x Grade C Security Officer Dayshift | D13: Month | E13: 36 | F13: =19917.96*2 -> R39,835.92 | H13: =F13*E13 -> R1,434,093.12
C14: 4x Grade C Security Officer Night shift | D14: Month | E14: 36 | F14: =19917.96*4 -> R79,671.84 | H14: =F14*E14 -> R2,868,186.24
C15: Subtotal | H15: =H14+H13 -> R4,302,279.36
C16: Pieterboth substation
C17: 2x Grade C Security Officer Dayshift | D17: Month | E17: 36 | F17: =19917.96*2 -> R39,835.92 | H17: =F17*E17 -> R1,434,093.12
C18: 4x Grade C Security Officer Night shift | D18: Month | E18: 36 | F18: =19917.96*4 -> R79,671.84 | H18: =F18*E18 -> R2,868,186.24
C19: Subtotal | H19: =H17+H18 -> R4,302,279.36
C20: Brenner substation
C21: 2x Grade C Security Officer Dayshift | D21: Month | E21: 36 | F21: =19917.96*2 -> R39,835.92 | H21: =F21*E21 -> R1,434,093.12
C22: 4x Grade C Security Officer Night shift | D22: Month | E22: 36 | F22: =19917.96*4 -> R79,671.84 | H22: =F22*E22 -> R2,868,186.24
C23: Subtotal | H23: =H21+H22 -> R4,302,279.36
C24: Others
C25: 4x2 Vehicle for patrols during day shifts, night shift and weekend including holidays(km) | D25: Month | E25: 8000 | F25: R6.00 | H25: =F25*E25 -> R48,000.00
C26: 4x2 Vehicle for patrols during day shifts, night shift and weekend including holidays(km) | D26: Month | E26: 4000 | F26: R6.00 | H26: =F26*E26 -> R24,000.00
C27: Armed reaction team of 2 personnel (provide rate per person)
C28: Supervisor grade B. Dayshift (all-inclusive costs) 4 x 2 vehicle | D28: Month | E28: 36 | F28: R22,089.32 | H28: =F28*E28 -> R795,215.52
C29: Supervisor grade B. Nightshift (all-inclusive costs) 4 x 2 vehicle | D29: Month | E29: 36 | F29: R22,089.32 | H29: =F29*E29 -> R795,215.52
C30: SHE officer | D30: Month | E30: 36 | F30: R8,000.00 | H30: =F30*E30 -> R288,000.00
C31: Subtotal | H31: =SUM(H25:H30) -> R1,950,431.04
C32: TOTAL FOR EASTRAND AREA | H32: =H31+H23+H19+H15+H12+H7 -> R22,027,734.72

Sheet WEST RAND (hidden)
A1: ITEM | B1: PAYREF | C1: DESCRIPTION | D1: UNIT | E1: A-QTY | F1: RATE | H1: AMOUNT | I1: WORDING
C2: AREA: WESTRAND/JHB
C3: Etna
C4: 2x Grade C Security Officer Dayshift | D4: Month | E4: 36 | F4: =19917.96*2 -> R39,835.92 | H4: =F4*E4 -> R1,434,093.12
C5: 4x Grade C Security Officer Night shift | D5: Month | E5: 36 | F5: =19917.96*4 -> R79,671.84 | H5: =F5*E5 -> R2,868,186.24
C6: Subtotal | H6: =H4+H5 -> R4,302,279.36
C7: Bernina - Hera
C8: 2x Grade C Security Officer Dayshift | D8: Month | E8: 36 | F8: =19917.96*2 -> R39,835.92 | H8: =F8*E8 -> R1,434,093.12
C9: 3x Grade C Security Officer Night shift | D9: Month | E9: 36 | F9: =19917.96*3 -> R59,753.88 | H9: =F9*E9 -> R2,151,139.68
C10: Subtotal | H10: =SUM(H8:H9) -> R3,585,232.80
C11: Taunus
C12: 2x Grade C Security Officer Dayshift | D12: Month | E12: 36 | F12: =19917.96*2 -> R39,835.92 | H12: =F12*E12 -> R1,434,093.12
C13: 4x Grade C Security Officer Night shift | D13: Month | E13: 36 | F13: =19917.96*4 -> R79,671.84 | H13: =F13*E13 -> R2,868,186.24
C14: Subtotal | H14: =H12+H13 -> R4,302,279.36
C15: Westgate
C16: 2x Grade C Security Officer Dayshift | D16: Month | E16: 36 | F16: =19917.96*2 -> R39,835.92 | H16: =F16*E16 -> R1,434,093.12
C17: 2x Grade C Security Officer Night shift | D17: Month | E17: 36 | F17: =19917.96*2 -> R39,835.92 | H17: =F17*E17 -> R1,434,093.12
C18: Subtotal | H18: =H16+H17 -> R2,868,186.24
C19: Princess
C20: 2x Grade C Security Officer Dayshift | D20: Month | E20: 36 | F20: =19917.96*2 -> R39,835.92 | H20: =F20*E20 -> R1,434,093.12
C21: 2x Grade C Security Officer Night shift | D21: Month | E21: 36 | F21: =19917.96*2 -> R39,835.92 | H21: =F21*E21 -> R1,434,093.12
C22: Subtotal | H22: =H20+H21 -> R2,868,186.24
C23: Craighall
C24: 2x Grade C Security Officer Dayshift | D24: Month | E24: 36 | F24: =19917.96*2 -> R39,835.92 | H24: =F24*E24 -> R1,434,093.12
C25: 2x Grade C Security Officer Night shift | D25: Month | E25: 36 | F25: =19917.96*2 -> R39,835.92 | H25: =F25*E25 -> R1,434,093.12
C26: Subtotal | H26: =H24+H25 -> R2,868,186.24
C27: Others
C28: 4x2 Vehicle for patrols during day shifts, night shift and weekend including holidays(km) | D28: KM | E28: 8000 | F28: R6.00 | H28: =F28*E28 -> R48,000.00
C29: 4x4 Vehicle for patrols during day shifts, night shift and weekend including holidays(km) | D29: KM | E29: 4000 | F29: R6.00 | H29: =E29*F29 -> R24,000.00
C30: 12x Armed reaction team of 2 personnel (provide rate per person) | D30: Month | E30: 36 | F30: =19917.96*12 -> R239,015.52 | H30: =F30*E30 -> 8604558.72
C31: Supervisor grade B. Dayshift (all-inclusive costs) 4 x 2 vehicle | D31: Month | E31: 36 | F31: R22,089.32 | H31: =E31*F31 -> R795,215.52
C32: Supervisor grade B. Nightshift (all-inclusive costs) 4 x 2 vehicle | D32: Month | E32: 36 | F32: R22,089.32 | H32: =E32*F32 -> R795,215.52
C33: SHE officer | D33: Month | E33: 36 | F33: R8,000.00 | H33: R288,000.00
C34: Subtotal | H34: =H6+H10+H14+H18+H22+H26+H33 -> R21,082,350.24
C35: TOTAL AREA: WESTRAND/JHB | H35: =H34+H26+H22+H18+H14+H10+H6 -> R41,876,700.48

Sheet VAAL (hidden)
A1: ITEM | B1: PAYREF | C1: DESCRIPTION | D1: UNIT | E1: A-QTY | F1: RATE | H1: AMOUNT | I1: WORDING
C2: AREA: VAAL
C3: Rigi substation
C4: 2x Grade C Security Officer Dayshift | D4: Month | E4: 36 | F4: =19917.96*2 -> R39,835.92 | H4: =F4*E4 -> R1,434,093.12
C5: 4x Grade C Security Officer Night shift | D5: Month | E5: 36 | F5: =19917.96*4 -> R79,671.84 | H5: =F5*E5 -> R2,868,186.24
C6: Subtotal | H6: =H4+H5 -> R4,302,279.36
C7: Verdun substation
C8: 2x Grade C Security Officer Dayshift | D8: Month | E8: 36 | F8: =19917.96*2 -> R39,835.92 | H8: =F8*E8 -> R1,434,093.12
C9: 2x Grade C Security Officer Night shift | D9: Month | E9: 36 | F9: =19917.96*2 -> R39,835.92 | H9: =F9*E9 -> R1,434,093.12
C10: Subtotal | H10: =H8+H9 -> R2,868,186.24
C11: Glockner substation
C12: 2x Grade C Security Officer Dayshift | D12: Month | E12: 36 | F12: =19917.96*2 -> R39,835.92 | H12: R1,434,093.12
C13: 4x C Security Officer Night shift | D13: Month | E13: 36 | F13: =19917.96*4 -> R79,671.84 | H13: R2,868,186.24
C14: Grade C Security Officer Dayshift | D14: Month | E14: 36 | F14: =19917.96 -> R19,917.96 | H14: =F14*E14 -> R717,046.56
C15: 2x Grade C Security Officer Nightshift | D15: Month | E15: 36 | F15: =19917.96*2 -> R39,835.92 | H15: R1,434,093.12
C16: Subtotal | F16: R8,000.00 | H16: =H12+H13+H14+H15 -> R6,453,419.04
C17: Kookfontein substation
C18: 2x Grade C Security Officer Dayshift | D18: Month | E18: 36 | F18: =19917.96*2 -> R39,835.92 | H18: =F18*E18 -> R1,434,093.12
C19: 2x Grade C Security Officer Night shift | D19: Month | E19: 36 | F19: =19917.96*2 -> R39,835.92 | H19: =F19*E19 -> R1,434,093.12
C20: Subtotal | H20: =H18+H19 -> R2,868,186.24
C21: Snowdon substation
C22: 2x Grade C Security Officer Dayshift | D22: Month | E22: 36 | F22: =19917.96*2 -> R39,835.92 | H22: =F22*E22 -> R1,434,093.12
C23: 4x Grade C Security Officer Night shift | D23: Month | E23: 36 | F23: =19917.96*4 -> R79,671.84 | H23: =F23*E23 -> R2,868,186.24
C24: Subtotal | H24: =H22+H23 -> R4,302,279.36
C25: Others
C26: 4x2 Vehicle for patrols during day shifts, night shift and weekend including holidays(km) | D26: Month | E26: 36 | F26: R6.00 | H26: =F26*E26 -> R216.00
C27: 4x4 Vehicle for patrols during day shifts, night shift and weekend including holidays(km) | D27: Month | E27: 36 | F27: R6.00 | H27: =F27*E27 -> R216.00
C28: 12x Armed reaction team of 2 personnel (provide rate per person) | D28: Month | E28: 36 | F28: =19917.96*12 -> R239,015.52 | H28: R8,604,558.72
C29: Supervisor grade B. Dayshift (all-inclusive costs) 4 x 2 vehicle | D29: Month | E29: 36 | F29: R22,089.32 | H29: R795,215.52
C30: Supervisor grade B. Nightshift (all-inclusive costs) 4 x 2 vehicle | D30: Month | E30: 36 | F30: R22,089.32 | H30: R795,215.52
C31: SHE officer | D31: Month | E31: 36 | F31: R8,000.00 | H31: =E31*F31 -> R288,000.00
C32: Subtotal | H32: =SUM(H26:H31) -> R10,483,421.76
C33: TOTAL FOR VAAL AREA | H33: =H32+H24+H20+H16+H10+H6 -> R31,277,772.00
